Workbook

Sheet Template
B1: Pricing Worksheet
B2: Instructions: A. Complete yellow cells in Project Plan. B. Enter outside costs and mark-up (if any). C. Enter additional IC's (if any). D. Complete sales commisision box (if applicable). E. Enter Final Sale Price
AL3: Outside Costs | AM3: Item | AN3: Markup
B4: Project Plan Phase | C4: Description | D4: Resource Class | E4: Resource Person | F4: Estimated Hours | G4: Sale Price | H4: Cost | J4: Description or Vendor | K4: Outside Cost ($) | L4: Mark-Up | M4: Cost with Mark Up | O4: Project Summary | R4: Resource Class | T4: Hourly Cost | U4: Hourly Rate | V4: MarkUp | Y4: Approved By | Z4: Date | AB4: Personnel Class | AE4: Resource Lookup | AG4: Total | AH4: Cost | AJ4: Mark-Up | AL4: Production | AM4: Printing | AN4: 0.15
G5: =F5*IF(AE5=$R$5,$U$5,IF(AE5=$R$6,$U$6,IF(AE5=$R$7,$U$7,IF(AE5=$R$8,$U$8,IF(AE5=$R$9,$U$9,IF(AE5=$R$10,$U$10,IF(AE5=$R$11,$U$11,IF(AE5=$R$12,$U$12,IF(AE5=$R$13,$U$13,IF(AE5=$R$14,$U$14,IF(AE5=$R$15,$U$15,IF(AE5=$R$16,$U$16,IF(AE5=$R$17,$U$17,IF(AE5=$R$18,$U$18,IF(AE5=$R$19,$U$19,IF(AE5=$R$20,$U$20,IF(AE5=$R$21,$U$21,IF(AE5=$R$22,$U$22,)))))))))))))))))) -> 0 | H5: =F5*IF(AE5=$R$5,$T$5,IF(AE5=$R$6,$T$6,IF(AE5=$R$7,$T$7,IF(AE5=$R$8,$T$8,IF(AE5=$R$9,$T$9,IF(AE5=$R$10,$T$10,IF(AE5=$R$11,$T$11,IF(AE5=$R$12,$T$12,IF(AE5=$R$13,$T$13,IF(AE5=$R$14,$T$14,IF(AE5=$R$15,$T$15,IF(AE5=$R$16,$T$16,IF(AE5=$R$17,$T$17,IF(AE5=$R$18,$T$18,IF(AE5=$R$19,$T$19,IF(AE5=$R$20,$T$20,IF(AE5=$R$21,$T$21,IF(AE5=$R$22,$T$22,)))))))))))))))))) -> 0 | M5: =K5*(1+L5) -> 0 | O5: Dept | P5: Hours | R5: 1.1 | S5: Account Coordintor | T5: =Calculations!E19 -> 25 | U5: 120 | V5: =U5/T5 -> 4.8 | X5: Jeff | AB5: Aurora | AC5: =R5 -> 1.1 | AE5: =IF(D5=$S$5,$R$5,IF(D5=$S$6,$R$6,IF(D5=$S$7,$R$7,IF(D5=$S$8,$R$8,IF(D5=$S$9,$R$9,IF(D5=$S$10,$R$10,IF(D5=$S$11,$R$11,IF(D5=$S$12,$R$12,IF(D5=$S$13,$R$13,IF(D5=$S$14,$R$14,IF(D5=$S$15,$R$15,IF(D5=$S$16,$R$16,IF(D5=$S$17,$R$17,IF(D5=$S$18,$R$18,IF(D5=$S$19,$R$19,IF(D5=$S$20,$R$20,IF(D5=$S$21,$R$21,IF(D5=$S$22,$R$22,"")))))))))))))))))) ->  | AG5: =R5 -> 1.1 | AH5: =SUMIF($AE$5:$AE$44,R5,$H$5:$H$44) -> 0 | AJ5: 0 | AM5: Photographer | AN5: 0.15
G6: 0 | H6: 0 | M6: 0 | O6: AM | P6: =SUMIFS($F$5:$F$44,$AE$5:$AE$44,">1",$AE$5:$AE$44,"<2") -> 0 | R6: 1.2 | S6: Account Manager | T6: =Calculations!E11 -> 44 | U6: 140 | V6: =U6/T6 -> 3.181818182 | X6: Robert | AB6: Kyle | AC6: =R5 -> 1.1 | AG6: 1.2 | AH6: 0 | AJ6: 0.1 | AM6: Videographer | AN6: 0.15
G7: 0 | H7: 0 | M7: 0 | O7: PM | P7: =SUMIFS($F$5:$F$44,$AE$5:$AE$44,">2",$AE$5:$AE$44,"<3") -> 0 | R7: 1.3 | S7: Sr. Account Manager | T7: =Calculations!E9 -> 72 | U7: 150 | V7: 2.083333333 | X7: Stewart | AB7: Leslie | AC7: =R7 -> 1.3 | AG7: 1.3 | AH7: 0 | AJ7: 0.15 | AM7: Animation | AN7: 0.15
G8: 0 | H8: 0 | M8: 0 | O8: Creative | P8: =SUMIFS($F$5:$F$44,$AE$5:$AE$44,">5",$AE$5:$AE$44,"<6") -> 0 | R8: 1.4 | S8: Account Supervisor | T8: =Calculations!E9 -> 72 | U8: 175 | V8: 2.430555556 | AB8: Chloe | AC8: =R7 -> 1.3 | AG8: 1.4 | AH8: 0 | AJ8: 0.2 | AM8: Sound/Video Editor | AN8: 0.15
G9: 0 | H9: 0 | M9: 0 | O9: Digital | P9: =SUMIFS($F$5:$F$44,$AE$5:$AE$44,">4",$AE$5:$AE$44,"<5") -> 0 | R9: 1.5 | S9: Dir. Client Services | T9: =Calculations!E10 -> 83 | U9: 200 | V9: 2.409638554 | AB9: Bryce | AC9: =R8 -> 1.4 | AG9: 1.5 | AH9: 0 | AJ9: 0.25 | AM9: Voice-over | AN9: 0.15
G10: 0 | H10: 0 | M10: 0 | O10: Dev | P10: =SUMIFS($F$5:$F$44,$AE$5:$AE$44,">3",$AE$5:$AE$44,"<4") -> 0 | R10: 2.1 | S10: Project Manager | T10: =Calculations!E16 -> 57 | U10: 140 | V10: 2.456140351 | AB10: Megan | AC10: =R8 -> 1.4 | AG10: 2.1 | AH10: 0 | AM10: Stock Photo/Video | AN10: 0
G11: 0 | H11: 0 | M11: 0 | O11: ICs | P11: =SUMIFS($F$5:$F$44,$AE$5:$AE$44,">6",$AE$5:$AE$44,"<7") -> 0 | R11: 3.1 | S11: Developer 1 | T11: =Calculations!E15 -> 38 | U11: 150 | V11: 3.947368421 | AB11: Melissa | AC11: =R9 -> 1.5 | AG11: 3.1 | AH11: 0 | AM11: Vanity phone #'s or URLs | AN11: 0.15
G12: 0 | H12: 0 | J12: Total | K12: =SUM(K5:K11) -> 0 | L12: =SUM(L5:L11) -> 0 | M12: =SUM(M5:M11) -> 0 | O12: MD/CEO | P12: =SUMIFS($F$5:$F$44,$AE$5:$AE$44,">7",$AE$5:$AE$44,"<8") -> 0 | R12: 3.2 | S12: Developer 2 | T12: =Calculations!E14 -> 57 | U12: 175 | V12: 3.070175439 | AB12: Roya | AC12: =R10 -> 2.1 | AG12: 3.2 | AH12: 0 | AM12: Station Produced Spots | AN12: 0.15
G13: 0 | H13: 0 | O13: Total | P13: =SUM(P6:P12) -> 0 | R13: 4.1 | S13: Digital AS/Ops | T13: =Calculations!E7 -> 49 | U13: 150 | V13: 3.06122449 | AB13: Tamila | AC13: =R10 -> 2.1 | AG13: 4.1 | AH13: 0 | AL13: T&E | AM13: Travel | AN13: 0
G14: 0 | H14: 0 | K14: Name/Vendor | L14: Hourly Cost | M14: Hourly To Client | R14: 4.2 | S14: Digital Head | T14: =Calculations!E6 -> 77 | U14: 185 | V14: 2.402597403 | AB14: Eddie | AC14: =R11 -> 3.1 | AG14: 4.2 | AH14: 0 | AM14: Meals | AN14: 0
G15: 0 | H15: 0 | J15: Other IC 1 | M15: =L15*2 -> 0 | R15: 5.1 | S15: Exec. Creative Director | T15: =Calculations!E13 -> 98 | U15: 200 | V15: 2.040816327 | AB15: Sean | AC15: =R12 -> 3.2 | AG15: 5.1 | AH15: 0 | AM15: Hotels | AN15: 0
G16: 0 | H16: 0 | J16: Other IC 2 | R16: 6.1 | S16: IC Anne | T16: 85 | U16: 175 | V16: 2.058823529 | AB16: Garrick | AC16: =R13 -> 4.1 | AG16: 6.1 | AH16: 0 | AL16: Market Research | AM16: Research - Moderator | AN16: 0.15
G17: 0 | H17: 0 | R17: 6.2 | S17: IC Chris | T17: 75 | U17: 200 | V17: 2.666666667 | AB17: Regina | AC17: =R13 -> 4.1 | AG17: 6.2 | AH17: 0 | AM17: Research - Honorarium | AN17: 0
G18: 0 | H18: 0 | J18: Enter "X" in yellow box below if sales commission applies | R18: 6.3 | S18: IC Charlie | T18: 50 | U18: 175 | V18: 3.5 | AB18: Raheim | AC18: 4.2 | AG18: 6.3 | AH18: 0 | AM18: Research - Facilities | AN18: 0
G19: 0 | H19: 0 | R19: 6.4 | S19: IC Darlene | T19: 100 | U19: 250 | V19: 2.5 | AB19: Dana | AC19: 5.1 | AG19: 6.4 | AH19: 0 | AM19: Research - Recruiting | AN19: 0.15
G20: 0 | H20: 0 | J20: x | R20: 6.5 | S20: IC Other 1 | T20: =IF(L15="",0,L15) -> 0 | U20: =IF(M15="",0,M15) -> 0 | AB20: Anne | AC20: 6.1 | AG20: 6.5 | AH20: 0 | AM20: Platforms (e.g. MailChimp) | AN20: 0.15
G21: 0 | H21: 0 | R21: 6.6 | S21: IC Other 2 | T21: =IF(L16="",0,L16) -> 0 | U21: =IF(M16="",0,M16) -> 0 | AB21: Chris | AC21: 6.2 | AG21: 6.6 | AH21: 0 | AL21: Other | AM21: Shipping | AN21: 0
G22: 0 | H22: 0 | R22: 7.1 | S22: MD/CEO | T22: =Calculations!E22 -> 149 | U22: 275 | V22: 1.845637584 | AB22: Charlie | AC22: 6.3 | AG22: 7.1 | AH22: 0 | AM22: Postage | AN22: 0
G23: 0 | H23: 0 | AB23: Darlene | AC23: 6.4 | AM23: Software | AN23: 0
G24: 0 | H24: 0 | J24: Finanical Summary | M24: FINAL Pricing | AB24: Robert | AC24: =R22 -> 7.1 | AM24: TBD - 0% | AN24: 0
G25: 0 | H25: 0 | J25: Suggested Sale Price | K25: =G45+M12 -> 0 | M25: Final Sale Price | N25: 0 | AB25: Stewart | AC25: =R22 -> 7.1 | AM25: TBD - 15% | AN25: 0.15
G26: 0 | H26: 0 | J26: Costs | M26: Costs | N26: =K26 -> 0
G27: 0 | H27: 0 | J27: Internal Labor | K27: =SUM(AH5:AH5:AH15)+AH22 -> 0 | M27: Internal Labor | N27: 0
G28: 0 | H28: 0 | J28: External Labor | K28: =SUM(AH16:AH21) -> 0 | M28: External Labor | N28: 0
G29: 0 | H29: 0 | J29: Sales Comp | K29: =IF(J20="x",K25*0.1,0) -> 0 | M29: Sales Comp | N29: =IF(J20="x",N25*0.1,0) -> 0
G30: 0 | H30: 0 | J30: Outside Costs | K30: =M12 -> 0 | M30: Outside Costs | N30: 0
G31: 0 | H31: 0 | J31: Total Costs | K31: =SUM(K27:K30) -> 0 | M31: Total Costs | N31: =SUM(N27:N30) -> 0
G32: 0 | H32: 0 | J32: Profit | K32: =K25-K31 -> 0 | M32: Profit | N32: =N25-N31 -> 0
G33: 0 | H33: 0 | J33: Profit Margin | K33: =K32/K25 ->  | M33: Profit Margin | N33: =N32/N25 -> 
G34: 0 | H34: 0 | J34: Profit Ratio | K34: =K25/K31 ->  | M34: Profit Ratio | N34: =N25/N31 -> 
G35: 0 | H35: 0
G36: 0 | H36: 0 | J36: "3:1" Price Scenario | N36: Approval | O36: Date
G37: 0 | H37: 0 | J37: Sale Price | K37: =(K39*3)+(K40*3)+K41+K42 -> 0 | M37: Jeff
G38: 0 | H38: 0 | J38: Costs | M38: Robert
G39: 0 | H39: 0 | J39: Internal Labor | K39: =K27 -> 0 | M39: Stewart
G40: 0 | H40: 0 | J40: External Labor | K40: =K28 -> 0
G41: 0 | H41: 0 | J41: Sales Comp | K41: =K29 -> 0
G42: 0 | H42: 0 | J42: Outside Costs | K42: =K30 -> 0
G43: 0 | H43: 0 | J43: Total Costs | K43: =K31 -> 0
G44: 0 | H44: 0 | J44: Profit | K44: =K37-K43 -> 0
E45: Total Hours | F45: =SUM(F5:F44) -> 0 | G45: =SUM(G5:G44) -> 0 | H45: =SUM(H5:H44) -> 0 | J45: Profit Margin | K45: =K44/K37 -> 
J46: Profit Ratio | K46: =K37/K43 -> 

Sheet RCCA Example
B1: Pricing Worksheet
B2: Instructions: A. Complete yellow cells in Project Plan. B. Enter outside costs and mark-up (if any). C. Enter additional IC's (if any). D. Complete sales commisision box (if applicable). E. Enter Final Sale Price
AL3: Outside Costs | AM3: Item | AN3: Markup
B4: Project Plan Phase | C4: Description | D4: Resource Class | E4: Resource Person | F4: Estimated Hours | G4: Sale Price | H4: Cost | J4: Description or Vendor | K4: Outside Cost ($) | L4: Mark-Up | M4: Cost with Mark Up | O4: Project Summary | R4: Resource Class | T4: Hourly Cost | U4: Hourly Rate | V4: MarkUp | Y4: Approved By | Z4: Date | AB4: Personnel Class | AE4: Resource Lookup | AG4: Total | AH4: Cost | AJ4: Mark-Up | AL4: Production | AM4: Printing | AN4: 0.15
B5: Discovery | C5: Assessment & SWOT | D5: Exec. Creative Director | F5: 11 | G5: =F5*IF(AE5=$R$5,$U$5,IF(AE5=$R$6,$U$6,IF(AE5=$R$7,$U$7,IF(AE5=$R$8,$U$8,IF(AE5=$R$9,$U$9,IF(AE5=$R$10,$U$10,IF(AE5=$R$11,$U$11,IF(AE5=$R$12,$U$12,IF(AE5=$R$13,$U$13,IF(AE5=$R$14,$U$14,IF(AE5=$R$15,$U$15,IF(AE5=$R$16,$U$16,IF(AE5=$R$17,$U$17,IF(AE5=$R$18,$U$18,IF(AE5=$R$19,$U$19,IF(AE5=$R$20,$U$20,IF(AE5=$R$21,$U$21,IF(AE5=$R$22,$U$22,)))))))))))))))))) -> 2200 | H5: =F5*IF(AE5=$R$5,$T$5,IF(AE5=$R$6,$T$6,IF(AE5=$R$7,$T$7,IF(AE5=$R$8,$T$8,IF(AE5=$R$9,$T$9,IF(AE5=$R$10,$T$10,IF(AE5=$R$11,$T$11,IF(AE5=$R$12,$T$12,IF(AE5=$R$13,$T$13,IF(AE5=$R$14,$T$14,IF(AE5=$R$15,$T$15,IF(AE5=$R$16,$T$16,IF(AE5=$R$17,$T$17,IF(AE5=$R$18,$T$18,IF(AE5=$R$19,$T$19,IF(AE5=$R$20,$T$20,IF(AE5=$R$21,$T$21,IF(AE5=$R$22,$T$22,)))))))))))))))))) -> 1078 | K5: 0 | L5: 0 | M5: =K5*(1+L5) -> 0 | O5: Dept | P5: Hours | R5: 1.1 | S5: Account Coordintor | T5: =Calculations!E19 -> 25 | U5: 120 | V5: =U5/T5 -> 4.8 | X5: Jeff | AB5: Aurora | AC5: =R5 -> 1.1 | AE5: =IF(D5=$S$5,$R$5,IF(D5=$S$6,$R$6,IF(D5=$S$7,$R$7,IF(D5=$S$8,$R$8,IF(D5=$S$9,$R$9,IF(D5=$S$10,$R$10,IF(D5=$S$11,$R$11,IF(D5=$S$12,$R$12,IF(D5=$S$13,$R$13,IF(D5=$S$14,$R$14,IF(D5=$S$15,$R$15,IF(D5=$S$16,$R$16,IF(D5=$S$17,$R$17,IF(D5=$S$18,$R$18,IF(D5=$S$19,$R$19,IF(D5=$S$20,$R$20,IF(D5=$S$21,$R$21,IF(D5=$S$22,$R$22,"")))))))))))))))))) -> 5.1 | AG5: =R5 -> 1.1 | AH5: =SUMIF($AE$5:$AE$44,R5,$H$5:$H$44) -> 0 | AJ5: 0 | AM5: Photographer | AN5: 0.15
D6: IC Anne | F6: 8 | G6: 1400 | H6: 680 | M6: 0 | O6: AM | P6: =SUMIFS($F$5:$F$44,$AE$5:$AE$44,">1",$AE$5:$AE$44,"<2") -> 141 | R6: 1.2 | S6: Account Manager | T6: =Calculations!E11 -> 44 | U6: 140 | V6: =U6/T6 -> 3.181818182 | X6: Robert | AB6: Kyle | AC6: =R5 -> 1.1 | AE6: 6.1 | AG6: 1.2 | AH6: 2816 | AJ6: 0.1 | AM6: Videographer | AN6: 0.15
D7: Account Supervisor | F7: 14 | G7: 2450 | H7: 1008 | M7: 0 | O7: PM | P7: =SUMIFS($F$5:$F$44,$AE$5:$AE$44,">2",$AE$5:$AE$44,"<3") -> 0 | R7: 1.3 | S7: Sr. Account Manager | T7: =Calculations!E9 -> 72 | U7: 150 | V7: 2.083333333 | X7: Stewart | AB7: Leslie | AC7: =R7 -> 1.3 | AE7: 1.4 | AG7: 1.3 | AH7: 0 | AJ7: 0.15 | AM7: Animation | AN7: 0.15
D8: Account Manager | F8: 7 | G8: 980 | H8: 308 | M8: 0 | O8: Creative | P8: =SUMIFS($F$5:$F$44,$AE$5:$AE$44,">5",$AE$5:$AE$44,"<6") -> 94 | R8: 1.4 | S8: Account Supervisor | T8: =Calculations!E9 -> 72 | U8: 175 | V8: 2.430555556 | AB8: Chloe | AC8: =R7 -> 1.3 | AE8: 1.2 | AG8: 1.4 | AH8: 4536 | AJ8: 0.2 | AM8: Sound/Video Editor | AN8: 0.15
D9: Dir. Client Services | F9: 3 | G9: 600 | H9: 249 | M9: 0 | O9: Digital | P9: =SUMIFS($F$5:$F$44,$AE$5:$AE$44,">4",$AE$5:$AE$44,"<5") -> 0 | R9: 1.5 | S9: Dir. Client Services | T9: =Calculations!E10 -> 83 | U9: 200 | V9: 2.409638554 | AB9: Bryce | AC9: =R8 -> 1.4 | AE9: 1.5 | AG9: 1.5 | AH9: 1162 | AJ9: 0.25 | AM9: Voice-over | AN9: 0.15
C10: Personas | D10: Exec. Creative Director | F10: 8 | G10: 1600 | H10: 784 | M10: 0 | O10: Dev | P10: =SUMIFS($F$5:$F$44,$AE$5:$AE$44,">3",$AE$5:$AE$44,"<4") -> 0 | R10: 2.1 | S10: Project Manager | T10: =Calculations!E16 -> 57 | U10: 140 | V10: 2.456140351 | AB10: Megan | AC10: =R8 -> 1.4 | AE10: 5.1 | AG10: 2.1 | AH10: 0 | AM10: Stock Photo/Video | AN10: 0
D11: IC Anne | F11: 11.5 | G11: 2012.5 | H11: 977.5 | M11: 0 | O11: ICs | P11: =SUMIFS($F$5:$F$44,$AE$5:$AE$44,">6",$AE$5:$AE$44,"<7") -> 183.5 | R11: 3.1 | S11: Developer 1 | T11: =Calculations!E15 -> 38 | U11: 150 | V11: 3.947368421 | AB11: Melissa | AC11: =R9 -> 1.5 | AE11: 6.1 | AG11: 3.1 | AH11: 0 | AM11: Vanity phone #'s or URLs | AN11: 0.15
D12: Account Supervisor | F12: 5 | G12: 875 | H12: 360 | J12: Total | K12: =SUM(K5:K11) -> 0 | L12: =SUM(L5:L11) -> 0 | M12: =SUM(M5:M11) -> 0 | O12: MD/CEO | P12: =SUMIFS($F$5:$F$44,$AE$5:$AE$44,">7",$AE$5:$AE$44,"<8") -> 0 | R12: 3.2 | S12: Developer 2 | T12: =Calculations!E14 -> 57 | U12: 175 | V12: 3.070175439 | AB12: Roya | AC12: =R10 -> 2.1 | AE12: 1.4 | AG12: 3.2 | AH12: 0 | AM12: Station Produced Spots | AN12: 0.15
D13: Account Manager | F13: 5 | G13: 700 | H13: 220 | O13: Total | P13: =SUM(P6:P12) -> 418.5 | R13: 4.1 | S13: Digital AS/Ops | T13: =Calculations!E7 -> 49 | U13: 150 | V13: 3.06122449 | AB13: Tamila | AC13: =R10 -> 2.1 | AE13: 1.2 | AG13: 4.1 | AH13: 0 | AL13: T&E | AM13: Travel | AN13: 0
D14: Dir. Client Services | F14: 2 | G14: 400 | H14: 166 | K14: Name/Vendor | L14: Hourly Cost | M14: Hourly To Client | R14: 4.2 | S14: Digital Head | T14: =Calculations!E6 -> 77 | U14: 185 | V14: 2.402597403 | AB14: Eddie | AC14: =R11 -> 3.1 | AE14: 1.5 | AG14: 4.2 | AH14: 0 | AM14: Meals | AN14: 0
C15: Competitive Audit | D15: Account Supervisor | F15: 4 | G15: 700 | H15: 288 | J15: Other IC 1 | K15: Erin | L15: 85 | M15: 150 | R15: 5.1 | S15: Exec. Creative Director | T15: =Calculations!E13 -> 98 | U15: 200 | V15: 2.040816327 | AB15: Sean | AC15: =R12 -> 3.2 | AE15: 1.4 | AG15: 5.1 | AH15: 9212 | AM15: Hotels | AN15: 0
D16: Account Manager | F16: 10 | G16: 1400 | H16: 440 | J16: Other IC 2 | R16: 6.1 | S16: IC Anne | T16: 85 | U16: 175 | V16: 2.058823529 | AB16: Garrick | AC16: =R13 -> 4.1 | AE16: 1.2 | AG16: 6.1 | AH16: 9987.5 | AL16: Market Research | AM16: Research - Moderator | AN16: 0.15
D17: Exec. Creative Director | F17: 8 | G17: 1600 | H17: 784 | R17: 6.2 | S17: IC Chris | T17: 75 | U17: 200 | V17: 2.666666667 | AB17: Regina | AC17: =R13 -> 4.1 | AE17: 5.1 | AG17: 6.2 | AH17: 0 | AM17: Research - Honorarium | AN17: 0
B18: Strategy | C18: Brand Architecture | D18: Exec. Creative Director | F18: 15 | G18: 3000 | H18: 1470 | J18: Enter "X" in yellow box below if sales commission applies | R18: 6.3 | S18: IC Charlie | T18: 50 | U18: 175 | V18: 3.5 | AB18: Raheim | AC18: 4.2 | AE18: 5.1 | AG18: 6.3 | AH18: 0 | AM18: Research - Facilities | AN18: 0
D19: IC Anne | F19: 18 | G19: 3150 | H19: 1530 | R19: 6.4 | S19: IC Darlene | T19: 100 | U19: 250 | V19: 2.5 | AB19: Dana | AC19: 5.1 | AE19: 6.1 | AG19: 6.4 | AH19: 0 | AM19: Research - Recruiting | AN19: 0.15
D20: Dir. Client Services | F20: 3 | G20: 600 | H20: 249 | R20: 6.5 | S20: IC Other 1 | T20: =IF(L15="",0,L15) -> 85 | U20: =IF(M15="",0,M15) -> 150 | V20: 1.764705882 | AB20: Anne | AC20: 6.1 | AE20: 1.5 | AG20: 6.5 | AH20: 5610 | AM20: Platforms (e.g. MailChimp) | AN20: 0.15
D21: Account Supervisor | F21: 7 | G21: 1225 | H21: 504 | R21: 6.6 | S21: IC Other 2 | T21: =IF(L16="",0,L16) -> 0 | U21: =IF(M16="",0,M16) -> 0 | AB21: Chris | AC21: 6.2 | AE21: 1.4 | AG21: 6.6 | AH21: 0 | AL21: Other | AM21: Shipping | AN21: 0
D22: Account Manager | F22: 5 | G22: 700 | H22: 220 | R22: 7.1 | S22: MD/CEO | T22: =Calculations!E22 -> 149 | U22: 275 | V22: 1.845637584 | AB22: Charlie | AC22: 6.3 | AE22: 1.2 | AG22: 7.1 | AH22: 0 | AM22: Postage | AN22: 0
C23: Positioning | D23: Exec. Creative Director | F23: 18 | G23: 3600 | H23: 1764 | AB23: Darlene | AC23: 6.4 | AE23: 5.1 | AM23: Software | AN23: 0
D24: IC Anne | F24: 21 | G24: 3675 | H24: 1785 | J24: Finanical Summary | M24: FINAL Pricing | AB24: Robert | AC24: =R22 -> 7.1 | AE24: 6.1 | AM24: TBD - 0% | AN24: 0
D25: Dir. Client Services | F25: 2 | G25: 400 | H25: 166 | J25: Suggested Sale Price | K25: =G45+M12 -> 72047.5 | M25: Final Sale Price | N25: 61500 | AB25: Stewart | AC25: =R22 -> 7.1 | AE25: 1.5 | AM25: TBD - 15% | AN25: 0.15
D26: Account Supervisor | F26: 7 | G26: 1225 | H26: 504 | J26: Costs | M26: Costs | N26: =K26 -> 0 | AE26: 1.4
D27: Account Manager | F27: 5 | G27: 700 | H27: 220 | J27: Internal Labor | K27: =SUM(AH5:AH5:AH15)+AH22 -> 17726 | M27: Internal Labor | N27: 17726 | AE27: 1.2
B28: Creative Dev | C28: Name & Logo | D28: Exec. Creative Director | F28: 22 | G28: 4400 | H28: 2156 | J28: External Labor | K28: =SUM(AH16:AH21) -> 15597.5 | M28: External Labor | N28: 15597.5 | AE28: 5.1
D29: IC Anne | F29: 43 | G29: 7525 | H29: 3655 | J29: Sales Comp | K29: =IF(J20="x",K25*0.1,0) -> 0 | M29: Sales Comp | N29: 0 | AE29: 6.1
D30: Dir. Client Services | F30: 4 | G30: 800 | H30: 332 | J30: Outside Costs | K30: =M12 -> 0 | M30: Outside Costs | N30: 0 | AE30: 1.5
D31: IC Other 1 | F31: 36 | G31: 5400 | H31: 3060 | J31: Total Costs | K31: =SUM(K27:K30) -> 33323.5 | M31: Total Costs | N31: 33323.5 | AE31: 6.5
D32: Account Supervisor | F32: 14 | G32: 2450 | H32: 1008 | J32: Profit | K32: =K25-K31 -> 38724 | M32: Profit | N32: =N25-N31 -> 28176.5 | AE32: 1.4
D33: Account Manager | F33: 14 | G33: 1960 | H33: 616 | J33: Profit Margin | K33: =K32/K25 -> 0.5374787467 | M33: Profit Margin | N33: =N32/N25 -> 0.4581544715 | AE33: 1.2
C34: Reseach | D34: Exec. Creative Director | F34: 6 | G34: 1200 | H34: 588 | J34: Profit Ratio | K34: =K25/K31 -> 2.162062809 | M34: Profit Ratio | N34: =N25/N31 -> 1.845544436 | AE34: 5.1
D35: Account Supervisor | F35: 4 | G35: 700 | H35: 288 | AE35: 1.4
D36: Account Manager | F36: 6 | G36: 840 | H36: 264 | J36: "3:1" Price Scenario | N36: Approval | O36: Date | AE36: 1.2
C37: Brand Guidelines | D37: Exec. Creative Director | F37: 6 | G37: 1200 | H37: 588 | J37: Sale Price | K37: =(K39*3)+(K40*3)+K41+K42 -> 99970.5 | M37: Jeff | AE37: 5.1
D38: IC Anne | F38: 16 | G38: 2800 | H38: 1360 | J38: Costs | M38: Robert | AE38: 6.1
D39: IC Other 1 | F39: 30 | G39: 4500 | H39: 2550 | J39: Internal Labor | K39: =K27 -> 17726 | M39: Stewart | AE39: 6.5
D40: Account Supervisor | F40: 8 | G40: 1400 | H40: 576 | J40: External Labor | K40: =K28 -> 15597.5 | AE40: 1.4
D41: Account Manager | F41: 12 | G41: 1680 | H41: 528 | J41: Sales Comp | K41: =K29 -> 0 | AE41: 1.2
G42: 0 | H42: 0 | J42: Outside Costs | K42: =K30 -> 0
G43: 0 | H43: 0 | J43: Total Costs | K43: =K31 -> 33323.5
G44: 0 | H44: 0 | J44: Profit | K44: =K37-K43 -> 66647
E45: Total Hours | F45: =SUM(F5:F44) -> 418.5 | G45: =SUM(G5:G44) -> 72047.5 | H45: =SUM(H5:H44) -> 33323.5 | J45: Profit Margin | K45: =K44/K37 -> 0.6666666667
J46: Profit Ratio | K46: =K37/K43 -> 3

Sheet Calculations
A3: Dept/Employee | B3: Total
B5: Salary | C5: Sal + Benefits | D5: Hourly Cost | E5: Hourly Cost (Rounded)
A6: Director Digital Marketing - Raheim Bundle | B6: 118125 | C6: =B6*1.3 -> 153562.5 | D6: =C6/2000 -> 76.78125 | E6: =ROUND(D6,0) -> 77
A7: Digital Account Manager - Regina Sirko | B7: 75416 | C7: =B7*1.3 -> 98040.8 | D7: 49.0204 | E7: 49
A8: Digital Account Supervisor - Garrick Gaffney | B8: 97500 | C8: 126750 | D8: 63.375 | E8: 63
A9: Account Supervisor - Megan | B9: 110000 | C9: 143000 | D9: 71.5 | E9: 72
A10: Acct Director - Melissa Martinez | B10: 128333 | C10: 166832.9 | D10: 83.41645 | E10: 83
A11: Account Manager - Leslie Hines | B11: 68000 | C11: 88400 | D11: 44.2 | E11: 44
A12: Account Coordinator - Chloé Ribotsky | B12: 52083 | C12: 67707.9 | D12: 33.85395 | E12: 34
A13: Creative Director - Dana | B13: 150000 | C13: 195000 | D13: 97.5 | E13: 98
A14: Web Programmer - Eddie Olivas | B14: 87125 | C14: 113262.5 | D14: 56.63125 | E14: 57
A15: Web Programmer - Sean Mee | B15: 58333 | C15: 75832.9 | D15: 37.91645 | E15: 38
A16: Project Manager - Tamila Kahng | B16: 87916 | C16: 114290.8 | D16: 57.1454 | E16: 57
A17: Associate Project Mgr/Media Coordinator - Celeste Ethington | B17: 50750 | C17: 65975 | D17: 32.9875 | E17: 33
A18: Business Dev - Kathy Gaughran | B18: 0 | C18: 0 | D18: 0 | E18: 0
A19: Lead Generation/Research - Aurora Olivas | B19: 38376 | C19: 49888.8 | D19: 24.9444 | E19: 25
A20: Marketing & Office Administrator - Kyle Hojem | B20: 37187 | C20: 48343.1 | D20: 24.17155 | E20: 24
A21: CEO - Stewart Gandolf | B21: 300000 | C21: 390000 | D21: 195 | E21: 195
A22: Managing Director - TBD | B22: 229166 | C22: 297915.8 | D22: 148.9579 | E22: 149
A23: CFO - Jeff Mancino | B23: 205000 | C23: 266500 | D23: 133.25 | E23: 133
A24: Sr. Accountant - Elisa Negrete | B24: 67237 | C24: 87408.1 | D24: 43.70405 | E24: 44
